fUSD/lending_fUSD_20240804
["ID","MTS","AMOUNT","RATE_DAILY","PERIOD"]
[334131978,1722789137528,-606.8,0.00023671,9]
[334131979,1722789137537,-500.0,0.00023671,9]
[334131980,1722789137547,-593.44,0.00023671,9]
[334131981,1722789137556,-500.0,0.00023671,9]
[334131982,1722789137565,-500.0,0.00023671,9]
[334131983,1722789137574,-500.0,0.00023671,9]
[334131984,1722789137583,-500.0,0.00023671,9]
[334131985,1722789137592,-500.0,0.00023671,9]
[334131986,1722789137601,-607.33,0.00023671,9]
[334131987,1722789137612,-500.0,0.00023671,9]
[334131988,1722789137621,-500.0,0.00023671,9]
[334131989,1722789137720,-431.4300371,0.00023671,9]
[334131990,1722789137729,-500.0,0.00023671,9]
[334131991,1722789137739,-500.0,0.00023671,9]
[334131992,1722789137748,-500.0,0.00023671,9]
[334131993,1722789137757,-500.0,0.00023671,9]
[334131994,1722789137766,-214.69,0.00023671,9]
[334131995,1722789137775,-500.0,0.00023671,9]
[334131996,1722789137784,-500.0,0.00023671,9]
[334131997,1722789137794,-500.0,0.00023671,9]
[334131998,1722789137803,-500.0,0.00023671,9]
[334131999,1722789137812,-500.0,0.00023671,9]
[334132000,1722789137822,-397.50137938,0.00023671,9]
[334132001,1722789137831,-528.21,0.00023671,9]
[334132002,1722789137840,-500.0,0.00023671,9]
[334132003,1722789137849,-500.0,0.00023671,9]
[334132004,1722789137858,-500.0,0.00023671,9]
[334132005,1722789137867,-319.5,0.00023671,9]
[334132006,1722789137877,-569.32,0.00023671,9]
[334132007,1722789137886,-500.0,0.00023671,9]
[334132008,1722789137895,-500.0,0.00023671,9]
[334132009,1722789137905,-523.37,0.00023671,9]
[334132010,1722789137914,-500.0,0.00023671,9]
[334132011,1722789137923,-168.08,0.00023671,9]
[334132012,1722789137932,-500.0,0.00023671,9]
[334132013,1722789137941,-500.0,0.00023671,9]
[334132014,1722789137951,-6008.74,0.00023671,9]
[334132015,1722789137960,-500.0,0.00023671,9]
[334132016,1722789137970,-500.0,0.00023671,9]
[334132017,1722789137979,-500.0,0.00023671,9]
[334132018,1722789137989,-500.0,0.00023671,9]
[334132019,1722789137998,-500.0,0.00023671,9]
[334132020,1722789138007,-500.0,0.00023671,9]
[334132021,1722789138016,-2039.61,0.00023671,9]
[334132022,1722789138025,-500.0,0.00023671,9]
[334132023,1722789138034,-500.0,0.00023671,9]
[334132024,1722789138044,-3717.54,0.00023671,9]
[334132025,1722789138053,-500.0,0.00023671,9]
[334132026,1722789138062,-884.84,0.00023671,9]
[334132027,1722789138072,-500.0,0.00023671,9]
[334132028,1722789138081,-500.0,0.00023671,9]
[334132029,1722789138090,-500.0,0.00023671,9]
[334132030,1722789138100,-500.0,0.00023671,9]
[334132031,1722789138109,-580.87,0.00023671,9]
[334132032,1722789138118,-500.0,0.00023671,9]
[334132033,1722789138127,-3092.5,0.00023671,9]
[334132034,1722789138136,-1380.41,0.00023671,9]
[334132035,1722789138147,-500.0,0.00023671,9]
[334132036,1722789138161,-1525.48,0.00023671,9]
[334132037,1722789138171,-500.0,0.00023671,9]
[334132038,1722789138182,-735.29,0.00023671,9]
[334132039,1722789138190,-500.0,0.00023671,9]
[334132040,1722789138203,-1651.73,0.00023671,9]
[334132041,1722789138212,-500.0,0.00023671,9]
[334132042,1722789138222,-1424.91,0.00023671,9]
[334132043,1722789138236,-511.18,0.00023671,9]
[334132044,1722789138245,-9291.65,0.00023671,9]
[334132045,1722789138257,-210.81,0.00023671,9]
[334132046,1722789138267,-500.0,0.00023671,9]
[334132047,1722789138277,-668.08,0.00023671,9]
[334132048,1722789138287,-1800.64,0.00023671,9]
[334132049,1722789138297,-1076.82,0.00023671,9]
[334132050,1722789138307,-1604.95,0.00023671,9]
[334132051,1722789138316,-696.11,0.00023671,9]
[334132052,1722789138326,-840.83,0.00023671,9]
[334132053,1722789138335,-734.28,0.00023671,9]
[334132054,1722789138345,-500.0,0.00023671,9]
[334132055,1722789138355,-500.0,0.00023671,9]
[334132056,1722789138364,-500.0,0.00023671,9]
[334132057,1722789138375,-580.56,0.00023671,9]
[334132058,1722789138385,-1654.23,0.00023671,9]
[334132059,1722789138394,-728.39,0.00023671,9]
[334132060,1722789138404,-932.72,0.00023671,9]
[334132061,1722789138415,-254.34225354,0.00023671,9]
[334132062,1722789138424,-716.95,0.00023671,9]
[334132063,1722789138434,-652.16,0.00023671,9]
[334132064,1722789138446,-509.23,0.00023671,9]
[334132065,1722789138455,-500.0,0.00023671,9]
[334132066,1722789138465,-1421.84,0.00023671,9]
[334132067,1722789138475,-1831.37,0.00023671,9]
[334132068,1722789138485,-9159.33,0.00023671,9]
[334132069,1722789138494,-500.0,0.00023671,9]
[334132070,1722789138504,-24340.79,0.00023671,9]
[334132071,1722789138513,-500.0,0.00023671,9]
[334132072,1722789138523,-500.0,0.00023671,9]
[334132073,1722789138532,-500.0,0.00023671,9]
[334132074,1722789138542,-500.0,0.00023671,9]
[334132075,1722789138552,-500.0,0.00023671,9]
[334132076,1722789138562,-696.26,0.00023671,9]
[334132077,1722789138571,-500.0,0.00023671,9]
[334132078,1722789138580,-2392.07,0.00023671,9]
[334132079,1722789138590,-6117.15,0.00023671,9]
[334132080,1722789138600,-159.78,0.00023671,9]
[334132081,1722789138611,-1134.1,0.00023671,9]
[334132082,1722789138621,-2627.33,0.00023671,9]
[334132083,1722789138630,-871.99,0.00023671,9]
[334132084,1722789138639,-771.73,0.00023671,9]
[334132085,1722789138648,-544.49,0.00023671,9]
[334132086,1722789138659,-500.0,0.00023671,9]
[334132087,1722789138668,-11888.09,0.00023671,9]
[334132088,1722789138678,-791.38,0.00023671,9]
[334132089,1722789138688,-500.0,0.00023671,9]
[334132090,1722789138697,-500.0,0.00023671,9]
[334132091,1722789138706,-6002.83,0.00023671,9]
[334132092,1722789138716,-500.0,0.00023671,9]
[334132093,1722789138725,-944.27,0.00023671,9]
[334132094,1722789138734,-1585.57,0.00023671,9]
[334132095,1722789138743,-4038.41,0.00023671,9]
[334132096,1722789138753,-608.31,0.00023671,9]
[334132097,1722789138762,-1194.13,0.00023671,9]
[334132098,1722789138771,-1646.59,0.00023671,9]
[334132099,1722789138780,-949.11,0.00023671,9]
[334132100,1722789138789,-500.0,0.00023671,9]
[334132101,1722789138799,-2124.99,0.00023671,9]
[334132102,1722789138808,-1277.47,0.00023671,9]
[334132103,1722789138817,-500.0,0.00023671,9]
[334132104,1722789138826,-2060.41,0.00023671,9]
[334132105,1722789138836,-5462.19,0.00023671,9]
[334132106,1722789138845,-1732.64,0.00023671,9]
[334132107,1722789138854,-500.0,0.00023671,9]
[334132108,1722789138864,-1091.18,0.00023671,9]
[334132109,1722789138873,-500.0,0.00023671,9]
[334132110,1722789138882,-544.49,0.00023671,9]
[334132111,1722789138892,-500.0,0.00023671,9]
[334132112,1722789138901,-500.0,0.00023671,9]
[334132113,1722789138910,-564.87,0.00023671,9]
[334132114,1722789138920,-15172.23,0.00023671,9]
[334132115,1722789138929,-4452.48,0.00023671,9]
[334132116,1722789138939,-851.31,0.00023671,9]
[334132117,1722789138949,-1441.44,0.00023671,9]
[334132118,1722789138958,-2716.36,0.00023671,9]
[334132119,1722789138967,-500.0,0.00023671,9]
[334132120,1722789138977,-584.6,0.00023671,9]
[334132121,1722789138987,-1571.23,0.00023671,9]
[334132122,1722789138996,-574.32,0.00023671,9]
[334132123,1722789139006,-500.0,0.00023671,9]
[334132124,1722789139016,-500.0,0.00023671,9]
[334132125,1722789139025,-703.47,0.00023671,9]
[334132126,1722789139034,-1021.22,0.00023671,9]
[334132127,1722789139044,-1535.24,0.00023671,9]
[334132128,1722789139054,-1291.6,0.00023671,9]
[334132129,1722789139064,-763.08,0.00023671,9]
[334132130,1722789139073,-5391.24,0.00023671,9]
[334132131,1722789139084,-1354.84,0.00023671,9]
[334132132,1722789139094,-584.33,0.00023671,9]
[334132133,1722789139103,-709.22,0.00023671,9]
[334132134,1722789139113,-500.0,0.00023671,9]
[334132135,1722789139123,-500.0,0.00023671,9]
[334132136,1722789139133,-2713.37,0.00023671,9]
[334132137,1722789139143,-2249.61,0.00023671,9]
[334132138,1722789139152,-995.02,0.00023671,9]
[334132139,1722789139162,-3893.64,0.00023671,9]
[334132140,1722789139174,-500.0,0.00023671,9]
[334132141,1722789139184,-500.0,0.00023671,9]
[334132142,1722789139194,-892.75,0.00023671,9]
[334132143,1722789139203,-605.15,0.00023671,9]
[334132144,1722789139213,-1131.9,0.00023671,9]
[334132145,1722789139222,-2837.07,0.00023671,9]
[334132146,1722789139232,-1059.61,0.00023671,9]
[334132147,1722789139242,-901.69,0.00023671,9]
[334132148,1722789139251,-873.69,0.00023671,9]
[334132149,1722789139263,-500.0,0.00023671,9]
[334132150,1722789139272,-1120.25,0.00023671,9]
[334132151,1722789139282,-1475.32,0.00023671,9]
[334132152,1722789139292,-500.0,0.00023671,9]
[334132153,1722789139301,-6849.94,0.00023671,9]
[334132154,1722789139311,-2285.11,0.00023671,9]
[334132155,1722789139321,-1520.63,0.00023671,9]
[334132156,1722789139332,-645.98,0.00023671,9]
[334132157,1722789139342,-1055.9,0.00023671,9]
[334132158,1722789139352,-500.0,0.00023671,9]
[334132159,1722789139362,-500.0,0.00023671,9]
[334132160,1722789139372,-4923.42,0.00023671,9]
[334132161,1722789139381,-1211.89,0.00023671,9]
[334132162,1722789139391,-1860.21,0.00023671,9]
[334132163,1722789139401,-500.0,0.00023671,9]
[334132164,1722789139411,-2498.66,0.00023671,9]
[334132165,1722789139421,-500.0,0.00023671,9]
[334132166,1722789139432,-723.93,0.00023671,9]
[334132167,1722789139443,-2543.95,0.00023671,9]
[334132168,1722789139453,-781.57,0.00023671,9]
[334132169,1722789139464,-1395.06,0.00023671,9]
[334132170,1722789139474,-1321.62,0.00023671,9]
[334132171,1722789139485,-1624.5,0.00023671,9]
[334132172,1722789139495,-1415.76,0.00023671,9]
[334132173,1722789139505,-1413.44,0.00023671,9]
[334132174,1722789139515,-500.0,0.00023671,9]
[334132175,1722789139526,-500.0,0.00023671,9]
[334132176,1722789139535,-1456.38,0.00023671,9]
[334132177,1722789139545,-1356.63,0.00023671,9]
[334132178,1722789139555,-911.83,0.00023671,9]
[334132179,1722789139564,-495.82,0.00023671,9]
[334132180,1722789139574,-500.0,0.00023671,9]
[334132181,1722789139583,-900.99,0.00023671,9]
[334132182,1722789139593,-1747.36,0.00023671,9]
[334132183,1722789139602,-2014.48,0.00023671,9]
[334132184,1722789139613,-2308.05,0.00023671,9]
[334132185,1722789139622,-500.0,0.00023671,9]
[334132186,1722789139632,-500.0,0.00023671,9]
[334132187,1722789139642,-2084.47,0.00023671,9]
[334132188,1722789139651,-3204.33,0.00023671,9]
[334132189,1722789139661,-500.0,0.00023671,9]
[334132190,1722789139671,-500.0,0.00023671,9]
[334132191,1722789139680,-782.31,0.00023671,9]
[334132192,1722789139689,-1114.5,0.00023671,9]
[334132193,1722789139699,-1467.0,0.00023671,9]
[334132194,1722789139708,-1170.79,0.00023671,9]
[334132195,1722789139717,-1027.92,0.00023671,9]
[334132196,1722789139727,-500.0,0.00023671,9]
[334132197,1722789139738,-584.12,0.00023671,9]
[334132198,1722789139747,-1503.19,0.00023671,9]
[334132199,1722789139757,-500.0,0.00023671,9]
[334132200,1722789139768,-500.0,0.00023671,9]
[334132201,1722789139778,-2370.59,0.00023671,9]
[334132202,1722789139787,-8526.84,0.00023671,9]
[334132203,1722789139797,-2115.13,0.00023671,9]
[334132204,1722789139807,-931.26,0.00023671,9]
[334132205,1722789139817,-500.0,0.00023671,9]
[334132206,1722789139827,-792.92,0.00023671,9]
[334132207,1722789139837,-500.0,0.00023671,9]
[334132208,1722789139847,-500.0,0.00023671,9]
[334132209,1722789139856,-500.0,0.00023671,9]
[334132210,1722789139866,-500.0,0.00023671,9]
[334132211,1722789139875,-500.0,0.00023671,9]
[334132212,1722789139885,-1212.39,0.00023671,9]
[334132213,1722789139894,-1614.2,0.00023671,9]
[334132214,1722789139904,-2872.78,0.00023671,9]
[334132215,1722789139925,-940.66,0.00023671,9]
[334132216,1722789139935,-500.0,0.00023671,9]
[334132217,1722789139944,-720.05,0.00023671,9]
[334132218,1722789139954,-500.0,0.00023671,9]
[334132219,1722789139964,-2278.54,0.00023671,9]
[334132220,1722789139976,-1140.48,0.00023671,9]
[334132221,1722789139985,-1064.77,0.00023671,9]
[334132222,1722789139995,-500.0,0.00023671,9]
[334132223,1722789140005,-500.0,0.00023671,9]
[334132224,1722789140014,-2298.73,0.00023671,9]
[334132225,1722789140024,-500.0,0.00023671,9]
[334132226,1722789140034,-952.32,0.00023671,9]
[334132227,1722789140044,-664.1,0.00023671,9]
[334132228,1722789140053,-1168.02,0.00023671,9]
[334132229,1722789140063,-1420.45,0.00023671,9]
[334132230,1722789140073,-735.18,0.00023671,9]
[334132231,1722789140082,-500.0,0.00023671,9]
[334132232,1722789140092,-500.0,0.00023671,9]
[334132233,1722789140101,-500.0,0.00023689,7]
[334132234,1722789140111,-860.06,0.00023689,7]
[334132235,1722789140121,-1396.09,0.0002374,6]
[334132236,1722789140131,-2337.51,0.00023753,2]
[334132237,1722789140140,-500.0,0.00023753,9]
[334132238,1722789140150,-500.0,0.00023753,9]
[334132239,1722789140159,-500.0,0.00023753,9]
[334132240,1722789140169,-500.0,0.00023753,9]
[334132241,1722789140182,-500.0,0.00023753,9]
[334132242,1722789140191,-500.0,0.00023753,9]
[334132243,1722789140201,-201.68,0.00023753,9]
[334132244,1722789140211,-500.0,0.00023753,9]
[334132245,1722789140221,-500.0,0.00023753,9]
[334132246,1722789140231,-500.0,0.00023753,9]
[334132247,1722789140241,-502.62,0.00023753,9]
[334132248,1722789140251,-550.13,0.00023753,9]
[334132249,1722789140264,-730.08,0.00023753,9]
[334132250,1722789140273,-500.0,0.00023753,9]
[334132251,1722789140282,-253.03114161,0.00023753,9]
[334132252,1722789140292,-588.86,0.00023753,9]
[334132253,1722789140301,-500.0,0.00023753,9]
[334132254,1722789140311,-500.0,0.00023753,9]
[334132255,1722789140320,-500.0,0.00023753,9]
[334132256,1722789140329,-500.0,0.00023753,9]
[334132257,1722789140339,-850.72,0.00023753,9]
[334132258,1722789140349,-760.21,0.00023753,9]
[334132259,1722789140359,-500.0,0.00023753,9]
[334132260,1722789140369,-626.04,0.00023753,9]
[334132261,1722789140378,-308.86,0.00023753,9]
[334132262,1722789140388,-500.0,0.00023753,9]
[334132263,1722789140398,-500.0,0.00023753,9]
[334132264,1722789140407,-500.0,0.00023753,9]
[334132265,1722789140436,-500.0,0.00023753,9]
[334132266,1722789140446,-561.46,0.00023753,9]
[334132267,1722789140456,-500.0,0.00023753,9]
[334132268,1722789140465,-500.0,0.00023753,9]
[334132269,1722789140475,-500.0,0.00023753,9]
[334132270,1722789140485,-500.0,0.00023753,9]
[334132271,1722789140494,-500.0,0.00023753,9]
[334132272,1722789140504,-550.62,0.00023753,9]
[334132273,1722789140513,-500.0,0.00023753,9]
[334132274,1722789140523,-500.0,0.00023753,9]
[334132275,1722789140533,-500.0,0.00023753,9]
[334132276,1722789140542,-452.01437694,0.00023753,9]
[334132277,1722789140552,-500.0,0.00023753,9]
[334132278,1722789140562,-500.0,0.00023753,9]
[334132279,1722789140572,-500.0,0.00023753,9]
[334132280,1722789140581,-448.03,0.00023753,9]
[334132281,1722789140591,-500.0,0.00023753,9]
[334132282,1722789140601,-591.33,0.00023753,9]
[334132283,1722789140611,-1011.69,0.00023753,9]
[334132284,1722789140621,-511.64,0.00023753,9]
[334132285,1722789140630,-500.0,0.00023753,9]
[334132286,1722789140640,-500.0,0.00023753,9]
[334132287,1722789140650,-559.06,0.00023753,9]
[334132288,1722789140659,-702.5,0.00023753,9]
[334132289,1722789140669,-500.0,0.00023753,9]
[334132290,1722789140679,-500.0,0.00023753,9]
[334132291,1722789140689,-230.23,0.00023753,9]
[334132292,1722789140699,-500.0,0.00023753,9]
[334132293,1722789140709,-646.51,0.00023753,9]
[334132294,1722789140718,-415.87,0.00023753,9]
[334132295,1722789140728,-1314.76,0.00023753,9]
[334132296,1722789140738,-500.0,0.00023753,9]
[334132297,1722789140748,-500.0,0.00023753,9]
[334132298,1722789140758,-532.71,0.00023753,9]
[334132299,1722789140768,-500.0,0.00023753,9]
[334132300,1722789140778,-721.27,0.00023753,9]
[334132301,1722789140788,-500.0,0.00023753,9]
[334132302,1722789140798,-500.0,0.00023753,9]
[334132303,1722789140808,-500.0,0.00023753,9]
[334132304,1722789140818,-500.0,0.00023753,9]
[334132305,1722789140828,-500.0,0.00023753,9]
[334132306,1722789140838,-500.0,0.00023753,9]
[334132307,1722789140848,-540.98,0.00023753,9]
[334132308,1722789140858,-500.0,0.00023753,9]
[334132309,1722789140868,-500.0,0.00023753,9]
[334132310,1722789140877,-521.65,0.00023753,9]
[334132311,1722789140888,-831.69,0.00023753,9]
[334132312,1722789140899,-500.0,0.00023753,9]
[334132313,1722789140909,-785.3,0.00023753,9]
[334132314,1722789140938,-780.18,0.00023753,9]
[334132315,1722789140948,-500.0,0.00023753,9]
[334132316,1722789140958,-500.0,0.00023753,9]
[334132317,1722789140968,-500.0,0.00023753,9]
[334132318,1722789140978,-500.0,0.00023753,9]
[334132319,1722789140988,-500.0,0.00023753,9]
[334132320,1722789140997,-500.0,0.00023753,9]
[334132321,1722789141007,-559.95,0.00023753,9]
[334132322,1722789141018,-500.0,0.00023753,9]
[334132323,1722789141028,-1164.15,0.00023753,9]
[334132324,1722789141038,-995.62,0.00023753,9]
[334132325,1722789141048,-500.0,0.00023753,9]
[334132326,1722789141057,-500.0,0.00023753,9]
[334132327,1722789141067,-500.0,0.00023753,9]
[334132328,1722789141077,-576.22,0.00023753,9]
[334132329,1722789141087,-543.19,0.00023753,9]
[334132330,1722789141099,-500.0,0.00023753,9]
[334132331,1722789141109,-500.0,0.00023753,9]
[334132332,1722789141119,-500.0,0.00023753,9]
[334132333,1722789141129,-500.0,0.00023753,9]
[334132334,1722789141139,-500.0,0.00023753,9]
[334132335,1722789141150,-500.0,0.00023753,9]
[334132336,1722789141160,-500.0,0.00023753,9]
[334132337,1722789141171,-599.57,0.00023753,2]
[334132338,1722789141181,-449.46,0.00023753,9]
[334132339,1722789141194,-500.0,0.00023753,9]
[334132340,1722789141204,-500.0,0.00023753,9]
[334132341,1722789141215,-500.0,0.00023753,9]
[334132342,1722789141227,-500.0,0.00023753,9]
[334132343,1722789141237,-500.0,0.00023753,9]
[334132344,1722789141248,-550.63,0.00023753,7]
[334132345,1722789141258,-500.0,0.00023753,9]
[334132346,1722789141269,-603.97,0.00023753,9]
[334132347,1722789141280,-173.23451456,0.00023753,9]
[334132348,1722789141290,-500.0,0.00023753,9]
[334132349,1722789141301,-579.69,0.00023753,9]
[334132350,1722789141312,-526.37,0.00023753,9]
[334132351,1722789141322,-519.43,0.00023753,9]
[334132352,1722789141333,-500.0,0.00023753,9]
[334132353,1722789141343,-500.0,0.00023753,9]
[334132354,1722789141354,-500.0,0.00023753,9]
[334132355,1722789141365,-500.0,0.00023753,9]
[334132356,1722789141375,-354.74,0.00023753,9]
[334132357,1722789141386,-500.0,0.00023753,9]
[334132358,1722789141396,-513.52,0.00023753,9]
[334132359,1722789141407,-500.0,0.00023753,9]
[334132360,1722789141434,-500.0,0.00023753,9]
[334132361,1722789141445,-543.0,0.00023753,9]
[334132362,1722789141455,-545.7,0.00023753,9]
[334132363,1722789141467,-500.0,0.00023753,9]
[334132364,1722789141478,-500.0,0.00023753,9]
[334132365,1722789141489,-500.0,0.00023753,9]
[334132366,1722789141696,-352.92,0.00023753,9]
[334132367,1722789141706,-500.0,0.00023753,9]
[334132368,1722789141715,-500.0,0.00023753,9]
[334132369,1722789141725,-500.0,0.00023753,9]
[334132370,1722789141736,-500.0,0.00023753,9]
[334132371,1722789141745,-500.0,0.00023753,9]
[334132372,1722789141755,-500.0,0.00023753,9]
[334132373,1722789141765,-572.51,0.00023753,9]
[334132374,1722789141774,-500.0,0.00023753,9]
[334132375,1722789141784,-500.0,0.00023753,9]
[334132376,1722789141794,-548.9257066,0.00023753,9]
[334132377,1722789141803,-383.45,0.00023753,9]
[334132378,1722789141812,-500.0,0.00023753,9]
[334132379,1722789141823,-500.0,0.00023753,9]
[334132380,1722789141834,-589.88,0.00023753,9]
[334132381,1722789141844,-500.0,0.00023753,9]
[334132382,1722789141854,-500.0,0.00023753,9]
[334132383,1722789141864,-500.0,0.00023753,9]
[334132384,1722789141874,-500.0,0.00023753,9]
[334132385,1722789141884,-643.51,0.00023753,9]
[334132386,1722789141894,-500.0,0.00023753,9]
[334132387,1722789141904,-500.0,0.00023753,9]
[334132388,1722789141923,-531.27,0.00023753,9]
[334132389,1722789141939,-500.0,0.00023753,9]
[334132390,1722789141949,-672.45,0.00023753,9]
[334132391,1722789141959,-500.0,0.00023753,9]
[334132392,1722789141968,-500.0,0.00023753,9]
[334132393,1722789141978,-500.0,0.00023753,9]
[334132394,1722789141988,-500.0,0.00023753,9]
[334132395,1722789141998,-500.0,0.00023753,9]
[334132396,1722789142008,-500.0,0.00023753,9]
[334132397,1722789142018,-500.0,0.00023753,9]
[334132398,1722789142028,-500.0,0.00023753,9]
[334132399,1722789142037,-500.0,0.00023753,9]
[334132400,1722789142047,-500.0,0.00023753,9]
[334132401,1722789142056,-500.0,0.00023753,9]
[334132402,1722789142065,-500.0,0.00023753,9]
[334132403,1722789142075,-634.65,0.00023753,9]
[334132404,1722789142085,-558.03,0.00023753,9]
[334132405,1722789142096,-500.0,0.00023753,9]
[334132406,1722789142106,-864.98,0.00023753,9]
[334132407,1722789142115,-510.16,0.00023753,9]
[334132408,1722789142125,-522.61,0.00023753,9]
[334132409,1722789142135,-1944.23,0.00023753,9]
[334132410,1722789142144,-500.0,0.00023753,9]
[334132411,1722789142153,-500.0,0.00023753,9]
[334132412,1722789142162,-500.0,0.00023753,9]
[334132413,1722789142174,-500.0,0.00023753,9]
[334132414,1722789142185,-500.0,0.00023753,9]
[334132415,1722789142196,-500.0,0.00023753,9]
[334132416,1722789142206,-500.0,0.00023753,9]
[334132417,1722789142216,-500.0,0.00023753,9]
[334132418,1722789142227,-500.0,0.00023753,9]
[334132419,1722789142237,-500.0,0.00023753,9]
[334132420,1722789142247,-500.0,0.00023753,9]
[334132421,1722789142259,-500.0,0.00023753,9]
[334132422,1722789142269,-185.75,0.00023753,9]
[334132423,1722789142279,-500.0,0.00023753,9]
[334132424,1722789142288,-546.11,0.00023753,9]
[334132425,1722789142298,-500.0,0.00023753,9]
[334132426,1722789142308,-500.0,0.00023753,9]
[334132427,1722789142318,-226.94,0.00023753,9]
[334132428,1722789142328,-544.54,0.00023753,9]
[334132429,1722789142338,-500.0,0.00023753,9]
[334132430,1722789142347,-500.0,0.00023753,9]
[334132431,1722789142357,-500.0,0.00023753,9]
[334132432,1722789142367,-500.0,0.00023753,9]
[334132433,1722789142376,-500.0,0.00023753,9]
[334132434,1722789142386,-500.0,0.00023753,9]
[334132435,1722789142395,-500.0,0.00023753,9]
[334132436,1722789142405,-606.8,0.00023753,9]
[334132437,1722789142414,-500.0,0.00023753,9]
[334132438,1722789142441,-593.44,0.00023753,9]
[334132439,1722789142452,-446.72,0.00023753,9]
[334132440,1722789142461,-500.0,0.00023753,9]
[334132441,1722789142471,-500.0,0.00023753,9]
[334132442,1722789142480,-249.82297866,0.00023753,9]
[334132443,1722789142490,-500.0,0.00023753,9]
[334132444,1722789142499,-607.33,0.00023753,9]
[334132445,1722789142509,-500.0,0.00023753,9]
[334132446,1722789142519,-242.22,0.00023753,9]
[334132447,1722789142529,-500.0,0.00023753,9]
[334132448,1722789142539,-500.0,0.00023753,9]
[334132449,1722789142550,-500.0,0.00023753,9]
[334132450,1722789142560,-500.0,0.00023753,9]
[334132451,1722789142570,-500.0,0.00023753,9]
[334132452,1722789142579,-500.0,0.00023753,9]
[334132453,1722789142589,-500.0,0.00023753,9]
[334132454,1722789142598,-540.96,0.00023753,9]
[334132455,1722789142608,-500.0,0.00023753,9]
[334132456,1722789142618,-528.21,0.00023753,9]
[334132457,1722789142627,-297.13,0.00023753,9]
[334132458,1722789142637,-500.0,0.00023753,9]
[334132459,1722789142647,-500.0,0.00023753,9]
[334132460,1722789142657,-569.32,0.00023753,9]
[334132461,1722789142666,-500.0,0.00023753,9]
[334132462,1722789142676,-500.0,0.00023753,9]
[334132463,1722789142686,-523.37,0.00023753,9]
[334132464,1722789142696,-500.0,0.00023753,9]
[334132465,1722789142705,-500.0,0.00023753,9]
[334132466,1722789142715,-500.0,0.00023753,9]
[334132467,1722789142725,-6008.74,0.00023753,9]
[334132468,1722789142735,-500.0,0.00023753,9]
[334132469,1722789142745,-224.96,0.00023753,9]
[334132470,1722789142754,-431.02,0.00023753,9]
[334132471,1722789142763,-500.0,0.00023753,9]
[334132472,1722789142773,-500.0,0.00023753,9]
[334132473,1722789142782,-500.0,0.00023753,9]
[334132474,1722789142792,-2039.61,0.00023753,9]
[334132475,1722789142803,-500.0,0.00023753,9]
[334132476,1722789142812,-500.0,0.00023753,9]
[334132477,1722789142823,-3717.54,0.00023753,9]